bitfinex/quotes_SOLUSD_20250318
["timestamp","ask_amount","ask_price","bid_price","bid_amount"]
[1742305078629,62.41322354,122.72,122.69,19.07613357]
[1742305079191,9e-06,122.73,122.69,19.07613357]
[1742305079393,9e-06,122.73,122.71,0.14216157]
[1742305080037,9e-06,122.73,122.72,27.082572]
[1742305080409,9e-06,122.73,122.72,8.1486]
[1742305080410,62.41323254,122.73,122.72,8.1486]
[1742305081044,62.41323254,122.73,122.71,8.1489]
[1742305081337,62.41322354,122.72,122.71,8.1489]
[1742305081542,9e-06,122.73,122.71,8.1489]
[1742305081744,9e-06,122.73,122.71,26.79854886]
[1742305081919,9e-06,122.73,122.72,27.082572]
[1742305082508,9e-06,122.73,122.72,27.22473357]
[1742305082842,9e-06,122.73,122.72,27.082572]
[1742305083144,9e-06,122.73,122.72,89.63795711]
[1742305083442,81.8,122.79,122.74,18.933972]
[1742305083625,62.41322354,122.8,122.76,0.14216157]
[1742305083941,62.41322354,122.78,122.76,18.933972]
[1742305084236,62.41322354,122.81,122.77,0.14216157]
[1742305084407,62.41322354,122.82,122.78,18.933972]
[1742305084818,215.723,122.83,122.8,0.28432314]
[1742305085033,278.13622354,122.83,122.8,0.28432314]
[1742305085214,215.723,122.83,122.8,0.28432314]
[1742305085415,215.723,122.83,122.8,81.34719554]
[1742305085622,0.063,122.83,122.82,18.933972]
[1742305086024,0.063,122.83,122.82,27.075872]
[1742305086235,0.063,122.83,122.82,8.1419]
[1742305086409,0.063,122.83,122.82,27.075872]
[1742305086616,0.063,122.83,122.82,89.48909554]
[1742305086934,0.063,122.86,122.83,0.28432314]
[1742305087109,0.063,122.86,122.85,0.28432314]
[1742305087531,0.0001,122.86,122.85,0.28432314]
[1742305087835,0.0001,122.86,122.85,62.69754668]
[1742305088132,0.0001,122.86,122.85,27.21613357]
[1742305088525,62.41332354,122.86,122.83,8.1413]
[1742305088838,62.41332354,122.86,122.83,0.28432314]
[1742305088839,62.41322354,122.84,122.83,0.28432314]
[1742305089020,62.41322354,122.84,122.82,8.1417]
[1742305089332,0.0001,122.86,122.84,18.64964886]
[1742305089518,0.0001,122.86,122.85,0.42648471]
[1742305089914,0.0001,122.86,122.85,0.28432314]
[1742305090118,0.0001,122.86,122.85,27.073972]
[1742305090439,0.0001,122.86,122.85,27.21613357]
[1742305091439,0.0001,122.86,122.82,26.79154886]
[1742305091440,62.41332354,122.86,122.82,26.79154886]
[1742305091619,62.41332354,122.86,122.83,0.14216157]
[1742305091938,62.41322354,122.84,122.81,9.6896]
[1742305092126,62.41322354,122.82,122.81,28.48141043]
[1742305092328,124.82644708,122.82,122.78,8.1446]
[1742305092524,62.41322354,122.79,122.78,8.1446]
[1742305092734,62.41322354,122.79,122.74,8.1473]
[1742305092931,62.41322354,122.75,122.74,8.1473]
[1742305093132,62.41322354,122.75,122.74,8.43162314]
[1742305093336,62.41322354,122.76,122.74,8.1473]
[1742305093719,81.8,122.8,122.74,28.5155]
[1742305093943,62.41322354,122.77,122.75,18.933972]
[1742305094139,62.41322354,122.82,122.77,0.28432314]
[1742305094341,81.8001,122.86,122.77,19.07613357]
[1742305094558,0.0001,122.86,122.79,19.07613357]
[1742305094762,8.1397,122.86,122.79,19.07613357]
[1742305094917,62.41322354,122.8,122.79,0.28432314]
[1742305095238,62.41322354,122.8,122.76,8.1459]
[1742305095439,62.41322354,122.77,122.76,8.1459]
[1742305095659,62.41322354,122.77,122.73,6.5579]
[1742305095848,62.41322354,122.75,122.73,0.14216157]
[1742305096047,62.41322354,122.74,122.72,1.70996157]
[1742305096234,62.41322354,122.74,122.72,9.85826157]
[1742305096439,62.41322354,122.74,122.72,9.7161]
[1742305096655,62.41322354,122.74,122.69,26.5582]
[1742305096656,229.7488,122.79,122.7,8.29186157]
[1742305096959,62.41322354,122.72,122.71,0.28432314]
[1742305097157,62.41322354,122.74,122.72,0.14216157]
[1742305097336,62.41322354,122.76,122.72,0.42648471]
[1742305097520,215.52,122.79,122.74,0.28432314]
[1742305097733,62.41322354,122.78,122.74,0.42648471]
[1742305097931,0.063,122.8,122.76,0.14216157]
[1742305098134,62.41322354,122.78,122.75,18.64964886]
[1742305098347,62.41322354,122.77,122.76,8.43022314]
[1742305098645,124.82644708,122.77,122.68,20.378]
[1742305098855,81.8,122.79,122.71,0.14216157]
[1742305099147,0.063,122.8,122.72,0.28432314]
[1742305099343,62.41322354,122.78,122.74,0.28432314]
[1742305099732,62.41322354,122.78,122.76,0.28432314]
[1742305100129,62.41322354,122.77,122.76,8.1458]
[1742305100344,62.41322354,122.77,122.74,8.57378471]
[1742305100550,62.41322354,122.76,122.74,8.57378471]
[1742305100754,0.063,122.8,122.74,8.43162314]
[1742305100755,62.41322354,122.75,122.74,8.43162314]
[1742305100931,62.41322354,122.75,122.7,18.79181043]
[1742305101248,62.41322354,122.76,122.71,0.28432314]
[1742305101427,62.41322354,122.76,122.7,18.79181043]
[1742305101628,62.41322354,122.71,122.7,8.1499]
[1742305101833,62.41322354,122.71,122.69,8.1805]
[1742305102148,62.41322354,122.71,122.7,0.28432314]
[1742305102351,62.41322354,122.71,122.7,8.43422314]
[1742305102527,62.41322354,122.71,122.7,8.29206157]
[1742305102727,62.41322354,122.71,122.7,8.43422314]
[1742305103228,215.52,122.77,122.72,0.14216157]
[1742305103425,62.41322354,122.78,122.74,0.14216157]
[1742305104053,0.063,122.8,122.74,0.14216157]
[1742305104371,62.41322354,122.78,122.76,8.1459]
[1742305104553,62.41322354,122.78,122.77,0.28432314]
[1742305105045,62.41322354,122.78,122.75,8.1463]
[1742305105254,62.41322354,122.76,122.75,8.43062314]
[1742305106552,62.41322354,122.76,122.74,8.1473]
[1742305106741,62.41322354,122.75,122.72,8.1486]
[1742305106944,62.41322354,122.73,122.72,8.1486]
[1742305107161,62.41322354,122.75,122.74,0.28432314]
[1742305107469,62.41322354,122.75,122.73,0.28432314]
[1742305107640,62.41322354,122.74,122.72,28.5201]
[1742305107837,62.41322354,122.73,122.71,8.149]
[1742305108064,62.41322354,122.72,122.71,8.149]
[1742305108239,62.41322354,122.72,122.69,20.54756157]
[1742305108240,62.41322354,122.72,122.69,0.03]
[1742305108446,62.41322354,122.7,122.69,0.03]
[1742305109269,62.41322354,122.7,122.69,0.31432314]
[1742305109433,62.41322354,122.7,122.69,0.17216157]
[1742305109735,297.36,122.75,122.69,0.31432314]
[1742305109935,62.41322354,122.7,122.69,0.31432314]
[1742305110162,62.41322354,122.71,122.69,0.31432314]
[1742305110354,62.41322354,122.7,122.69,0.31432314]
[1742305110555,62.41322354,122.7,122.69,8.46492314]
[1742305110859,62.41322354,122.71,122.69,8.46492314]
[1742305111266,62.41322354,122.7,122.69,8.46492314]
[1742305111481,62.41322354,122.71,122.69,28.84142314]
[1742305111661,297.36,122.75,122.69,28.84142314]
[1742305111848,62.41322354,122.72,122.69,28.84142314]
[1742305112188,62.41322354,122.74,122.71,0.28432314]
[1742305112684,62.41322354,122.74,122.72,8.1486]
[1742305112888,62.41322354,122.76,122.73,19.07613357]
[1742305113049,0.063,122.8,122.74,6.5548]
[1742305113249,0.063,122.8,122.75,19.07613357]
[1742305113450,62.41322354,122.79,122.75,19.07613357]
[1742305113753,0.063,122.8,122.75,19.07613357]
[1742305113961,62.41322354,122.78,122.75,19.07613357]
[1742305114157,0.063,122.8,122.75,19.07613357]
[1742305114383,62.41322354,122.79,122.75,19.07613357]
[1742305114676,62.41322354,122.79,122.78,0.28432314]
[1742305115178,0.063,122.8,122.78,0.28432314]
[1742305116078,62.41322354,122.82,122.78,0.28432314]
[1742305116380,62.41322354,122.81,122.78,0.28432314]
[1742305116581,62.41322354,122.8,122.78,0.28432314]
[1742305116753,215.58,122.83,122.79,28.5038]
[1742305116948,62.41322354,122.8,122.79,47.57993357]
[1742305117155,215.58,122.83,122.8,18.933972]
[1742305117352,62.41322354,122.82,122.8,18.933972]
[1742305118081,62.41322354,122.81,122.8,19.07613357]
[1742305118288,62.41322354,122.81,122.79,28.64596157]
[1742305118289,62.41322354,122.81,122.79,28.5038]
[1742305118448,215.58,122.83,122.79,47.57993357]
[1742305118648,215.58,122.83,122.8,0.28432314]
[1742305118870,215.58,122.83,122.81,8.1426]
[1742305119459,81.8001,122.86,122.82,0.28432314]
[1742305119984,81.8001,122.86,122.81,28.4992]
[1742305120162,81.8001,122.86,122.82,0.28432314]
[1742305120364,62.41322354,122.83,122.82,0.28432314]
[1742305120870,62.41322354,122.83,122.82,8.42622314]
[1742305121066,81.8001,122.86,122.82,28.78112314]
[1742305121582,62.41322354,122.83,122.82,28.4968]
[1742305121890,62.41322354,122.83,122.82,8.1419]
[1742305122953,124.82644708,122.83,122.8,28.5013]
[1742305123159,62.41322354,122.81,122.8,28.78562314]
[1742305123954,62.41322354,122.82,122.81,0.28432314]
[1742305124274,62.41322354,122.82,122.8,28.5013]
[1742305124479,62.41322354,122.81,122.8,28.78562314]
[1742305124676,62.41322354,122.81,122.8,28.5013]
[1742305124873,62.41322354,122.81,122.8,28.78562314]
[1742305125055,62.41322354,122.81,122.8,8.1433]
[1742305125252,62.41322354,122.81,122.8,8.28546157]
[1742305125479,81.8001,122.86,122.8,28.78592314]
[1742305125688,62.41322354,122.82,122.8,28.78592314]
[1742305125872,81.8001,122.86,122.81,19.07613357]
[1742305126054,62.41322354,122.83,122.81,18.933972]
[1742305126265,81.8001,122.86,122.81,18.933972]
[1742305126976,62.41322354,122.83,122.82,8.42622314]
[1742305127691,0.0001,122.86,122.83,19.07613357]
[1742305127870,0.0001,122.86,122.83,81.48935711]
[1742305128071,0.0001,122.86,122.83,19.07613357]
[1742305128397,0.0001,122.86,122.83,81.48935711]
[1742305128561,0.0001,122.86,122.85,0.28432314]
[1742305128762,62.41322354,122.88,122.85,0.28432314]
[1742305129068,0.063,122.89,122.87,0.28432314]
[1742305129266,62.41322354,122.88,122.87,0.28432314]
[1742305129562,21.26042354,122.88,122.87,19.07613357]
[1742305129770,0.063,122.89,122.87,19.07613357]
[1742305129978,62.47622354,122.89,122.87,18.933972]
[1742305130190,0.063,122.89,122.88,0.14216157]
[1742305130366,0.0001,122.89,122.88,0.14216157]
[1742305130567,0.0001,122.89,122.88,20.64273357]
[1742305130773,0.0001,122.92,122.9,0.14216157]
[1742305130966,0.0001,122.92,122.91,27.21213357]
[1742305131367,0.0001,122.92,122.91,27.069972]
[1742305131569,0.0001,122.92,122.91,27.21213357]
[1742305131772,62.41332354,122.92,122.91,8.136]
[1742305131989,62.41332354,122.92,122.91,8.42032314]
[1742305132590,0.0001,122.92,122.91,8.42032314]
[1742305133094,0.0001,122.92,122.91,8.56248471]
[1742305134272,0.0001,122.92,122.91,27.21213357]
[1742305134480,0.0001,122.92,122.91,89.62535711]
[1742305134702,0.0001,122.96,122.92,19.07613357]
[1742305135001,0.0001,122.96,122.95,27.20943357]
[1742305135504,0.0001,122.99,122.95,111.46265711]
[1742305135664,0.0001,122.99,122.97,19.07613357]
[1742305136582,62.41332354,122.99,122.97,19.07613357]
[1742305136794,0.0001,122.99,122.97,19.07613357]
[1742305137173,0.0001,122.99,122.98,27.20753357]
[1742305139395,0.0001,122.99,122.98,89.62075711]
[1742305139573,0.0001,122.99,122.98,27.20753357]
[1742305140106,0.063,123.05,122.99,19.07613357]
[1742305140279,0.063,123.05,123.01,19.07613357]
[1742305140785,0.063,123.05,123.03,19.07613357]
[1742305140998,62.47622354,123.05,123.03,19.07613357]
[1742305141196,62.47622354,123.05,123.04,26.91921043]
[1742305141913,62.47622354,123.05,123.04,27.20353357]
[1742305142416,0.0001,123.05,123.04,27.20353357]
[1742305143283,0.0001,123.05,123.04,33.28773357]
[1742305144407,0.063,123.09,123.05,19.07613357]
[1742305144619,0.063,123.09,123.07,19.07613357]
[1742305144909,61.97622354,123.11,123.07,19.07613357]
[1742305145275,0.03,123.12,123.09,19.07613357]
[1742305145696,0.03,123.12,123.09,81.48935711]
[1742305145900,0.03,123.12,123.09,19.07613357]
[1742305146285,0.03,123.12,123.09,81.48935711]
[1742305146611,0.063,123.13,123.11,19.07613357]
[1742305146979,0.0001,123.13,123.11,19.07613357]
[1742305147178,0.0001,123.13,123.12,81.48935711]
[1742305147509,0.063,123.18,123.13,0.42648471]
[1742305147708,62.41322354,123.17,123.13,0.42648471]
[1742305148087,62.41322354,123.16,123.13,0.42648471]
[1742305148315,62.41322354,123.14,123.13,0.42648471]
[1742305148821,62.41322354,123.14,123.13,0.28432314]
[1742305149219,41.2668807,123.14,123.13,0.42648471]
[1742305149418,41.2668807,123.14,123.13,27.19753357]
[1742305150083,41.2668807,123.14,123.13,8.1214]
[1742305150499,41.2668807,123.14,123.13,8.40572314]
[1742305150719,41.2668807,123.14,123.1,18.64964886]
[1742305150889,53.0498807,123.18,123.1,18.64964886]
[1742305150890,41.2668807,123.11,123.1,26.91521043]
[1742305151089,41.2668807,123.11,123.1,27.19953357]
[1742305151288,41.2668807,123.11,123.1,27.057372]
[1742305151490,20.0,123.14,123.11,0.28432314]
[1742305151705,41.2668807,123.12,123.11,0.28432314]
[1742305152387,20.0,123.14,123.11,0.42648471]
[1742305152388,41.2668807,123.13,123.11,0.42648471]
[1742305152590,41.2668807,123.12,123.11,0.42648471]
[1742305152798,41.2668807,123.13,123.11,0.42648471]
[1742305153186,0.063,123.18,123.11,0.42648471]
[1742305153391,41.2668807,123.17,123.13,19.07613357]
[1742305153605,41.3298807,123.18,123.13,19.07613357]
[1742305153911,41.2668807,123.16,123.13,19.07613357]
[1742305154496,41.2668807,123.14,123.13,19.07613357]
[1742305154902,41.2668807,123.14,123.13,0.28432314]
[1742305155214,41.2668807,123.14,123.13,19.07613357]
[1742305155408,41.2668807,123.16,123.13,47.50123357]
[1742305155912,20.063,123.18,123.13,47.50123357]
[1742305156214,41.2668807,123.17,123.13,47.50123357]
[1742305156389,41.2668807,123.17,123.13,88.10863357]
[1742305156589,41.2668807,123.16,123.13,88.10863357]
[1742305156785,0.063,123.18,123.13,88.10863357]
[1742305157003,41.2668807,123.17,123.13,88.10863357]
[1742305157315,41.2668807,123.16,123.13,88.10863357]
[1742305157688,41.2668807,123.14,123.13,27.19753357]
[1742305157891,41.2668807,123.14,123.11,8.26496157]
[1742305158110,41.2668807,123.12,123.11,8.26496157]
[1742305158313,0.03,123.14,123.12,0.28432314]
[1742305158624,41.2968807,123.14,123.12,18.79181043]
[1742305158911,41.2668807,123.13,123.12,19.07613357]
[1742305159109,0.03,123.14,123.13,0.14216157]
[1742305159311,41.2968807,123.14,123.12,8.26406157]
[1742305159500,41.2968807,123.14,123.11,8.1224]
[1742305159501,41.2668807,123.13,123.11,8.1224]
[1742305159699,41.2668807,123.12,123.07,8.1254]
[1742305159903,41.2668807,123.09,123.08,0.14216157]
[1742305160097,41.2668807,123.09,123.08,19.07613357]
[1742305160299,41.2668807,123.09,123.08,18.79181043]
[1742305160519,41.2668807,123.09,123.07,8.1254]
[1742305160808,41.2668807,123.08,123.06,26.77544886]
[1742305161011,41.2668807,123.07,123.06,8.1258]
[1742305161215,81.99387714,123.07,123.05,0.28432314]
[1742305161394,81.99387714,123.07,123.05,27.20283357]
[1742305161721,20.0,123.07,123.05,27.20283357]
[1742305162014,61.99387714,123.08,123.05,47.51973357]
[1742305162392,61.99387714,123.09,123.05,47.51973357]
[1742305162805,61.99387714,123.06,123.05,26.91851043]
[1742305162999,61.99387714,123.06,123.05,18.64964886]
[1742305163201,61.99387714,123.06,123.05,0.28432314]
[1742305163405,61.99387714,123.06,123.05,8.41102314]
[1742305163614,61.99387714,123.06,123.05,8.1267]
[1742305163827,123.98775428,123.06,123.04,8.1274]
[1742305164006,61.99387714,123.05,123.04,8.1274]
[1742305164319,20.0,123.06,123.05,0.28432314]
[1742305164619,81.99387714,123.06,123.05,0.14216157]
[1742305165022,81.99387714,123.06,123.05,0.28432314]
[1742305165521,61.99387714,123.06,123.05,8.41102314]
[1742305165901,61.99387714,123.06,123.05,27.20283357]
[1742305166104,11.42,123.08,123.05,47.51973357]
[1742305166397,61.99387714,123.07,123.05,47.51973357]
[1742305166615,61.99387714,123.06,123.05,27.20283357]
[1742305166813,61.99387714,123.06,123.03,20.3199]
[1742305167116,61.99387714,123.06,123.04,8.1271]
[1742305167335,17.9855,123.08,123.05,0.28432314]
[1742305167500,11.62,123.08,123.03,8.41232314]
[1742305168118,61.99387714,123.04,123.03,27.20413357]
[1742305168630,61.99387714,123.04,122.99,0.063]
[1742305168631,303.08587714,123.04,122.99,0.063]
[1742305168830,303.08587714,123.04,122.95,1.6393]
[1742305168831,123.98775428,123.0,122.94,20.3349]
[1742305169124,123.98775428,123.0,122.92,8.1353]
[1742305169125,61.99387714,122.95,122.92,8.1353]
[1742305169298,61.99387714,122.95,122.93,0.14216157]
[1742305169497,61.99387714,122.94,122.93,8.27686157]
[1742305169721,61.99387714,122.94,122.91,1.6393]
[1742305169902,61.99387714,122.92,122.87,8.1386]
[1742305170224,61.99387714,122.89,122.87,8.1386]
[1742305171025,93.02,122.93,122.87,8.1386]
[1742305171026,93.02,122.93,122.88,19.07613357]
[1742305171326,61.99387714,122.89,122.88,18.79181043]
[1742305171825,61.99387714,122.89,122.87,18.71264886]
[1742305172121,61.99387714,122.88,122.87,0.063]
[1742305172320,61.99387714,122.88,122.87,8.2016]
[1742305172537,61.99387714,122.88,122.87,0.34732314]
[1742305172899,61.99387714,122.88,122.87,0.063]
[1742305174110,61.99387714,122.88,122.87,0.34732314]
[1742305174737,61.99387714,122.88,122.87,0.063]
[1742305175228,123.98775428,122.88,122.87,0.063]
[1742305175428,61.99387714,122.88,122.87,0.063]
[1742305175608,61.99387714,122.88,122.87,0.34732314]
[1742305175814,61.99387714,122.88,122.87,0.48948471]
[1742305176526,61.99387714,122.88,122.87,0.063]
[1742305176731,61.99387714,122.88,122.87,0.48948471]
[1742305177525,61.99387714,122.88,122.87,8.62808471]
[1742305177830,61.99387714,122.89,122.87,27.27773357]
[1742305178021,61.99387714,122.88,122.87,0.34732314]
[1742305178338,135.02775428,122.88,122.87,0.063]
[1742305179823,135.02775428,122.88,122.86,0.063]
[1742305179824,347.36575428,122.88,122.86,0.063]
[1742305180034,20.0,122.84,122.81,8.1419]
[1742305180238,61.99387714,122.82,122.81,8.42622314]
[1742305180409,61.99387714,122.82,122.81,8.1419]
[1742305181307,61.99387714,122.82,122.81,27.075872]
[1742305181510,61.99387714,122.82,122.81,27.21803357]
[1742305182038,61.99387714,122.82,122.81,8.42622314]
[1742305182248,61.99387714,122.83,122.82,19.07613357]
[1742305182745,61.99387714,122.83,122.82,0.28432314]
[1742305183124,88.2083,122.87,122.82,0.28432314]
[1742305183427,41.47685426,122.84,122.83,0.14216157]
[1742305183630,41.47685426,122.85,122.83,0.14216157]
[1742305183828,41.47685426,122.85,122.82,18.57613357]
[1742305184131,41.47685426,122.84,122.83,8.1413]
[1742305184327,81.8,122.87,122.83,28.4946]
[1742305184512,41.47685426,122.84,122.83,28.4946]
[1742305185116,41.47685426,122.84,122.83,8.1413]
[1742305185946,41.47685426,122.84,122.82,8.1419]
[1742305186152,61.47685426,122.83,122.81,8.2056]
[1742305186355,41.47685426,122.82,122.81,8.2056]
[1742305187035,41.47685426,122.83,122.81,28.5622]
[1742305187415,81.8,122.86,122.81,28.5622]
[1742305187620,41.47685426,122.83,122.82,19.07613357]
[1742305187847,81.8,122.86,122.82,19.07613357]
[1742305187848,41.47685426,122.84,122.82,19.07613357]
[1742305188039,41.47685426,122.83,122.82,19.07613357]
[1742305188239,41.47685426,122.83,122.82,8.1419]
[1742305189649,81.8,122.86,122.83,0.42648471]
[1742305189821,123.27685426,122.86,122.83,19.07613357]
[1742305190022,215.24,122.88,122.83,19.07613357]
[1742305190337,41.47685426,122.87,122.85,19.07613357]
[1742305191153,215.24,122.88,122.85,19.07613357]
[1742305191330,256.71685426,122.88,122.85,19.07613357]
[1742305191532,215.24,122.88,122.85,19.07613357]
[1742305192051,41.50685426,122.9,122.85,19.07613357]
[1742305192251,41.50685426,122.9,122.87,19.07613357]
[1742305192455,41.47685426,122.89,122.87,19.07613357]
[1742305192655,0.03,122.9,122.87,19.07613357]
[1742305192846,41.47685426,122.89,122.87,19.07613357]
[1742305193556,0.03,122.9,122.87,19.07613357]
[1742305194357,0.03,122.9,122.89,19.07613357]
[1742305194555,41.50685426,122.9,122.89,19.07613357]
[1742305194755,0.03,122.9,122.89,19.07613357]
[1742305195051,41.50685426,122.9,122.88,8.138]
[1742305195255,41.47685426,122.89,122.88,27.21413357]
[1742305195753,0.03,122.9,122.89,19.07613357]
[1742305196133,0.03,122.9,122.89,0.42648471]
[1742305196560,0.03,122.9,122.89,8.56378471]
[1742305197333,41.50685426,122.9,122.89,8.56378471]
[1742305197529,0.03,122.9,122.89,8.56378471]
[1742305197741,10.7,122.93,122.91,0.42648471]
[1742305197954,41.47685426,122.92,122.91,0.42648471]
[1742305198444,41.47685426,122.92,122.91,8.136]
[1742305198842,41.47685426,122.92,122.88,0.14216157]
[1742305199052,20.0,122.9,122.89,8.1373]
[1742305199254,41.47685426,122.9,122.86,8.1393]
[1742305199456,61.47685426,122.87,122.86,8.1393]
[1742305200157,20.0,122.87,122.86,8.1393]
[1742305200376,61.47685426,122.87,122.81,22.0567]
[1742305200565,41.47685426,122.83,122.82,8.28406157]
[1742305200738,41.47685426,122.83,122.81,8.2053]
[1742305200937,41.47685426,122.82,122.81,8.2053]
[1742305202233,82.95370852,122.82,122.81,0.063]
[1742305202845,10.62,122.83,122.81,0.063]
[1742305203051,20.0,122.83,122.81,0.063]
[1742305203436,92.4,122.86,122.81,0.063]
[1742305203640,41.47685426,122.84,122.81,0.063]
[1742305203970,41.47685426,122.85,122.81,19.13913357]
[1742305204541,41.47685426,122.85,122.82,28.4968]
[1742305204842,41.47685426,122.86,122.83,19.07613357]
[1742305205249,41.47685426,122.85,122.83,19.07613357]
[1742305205561,41.47685426,122.84,122.83,19.07613357]
[1742305205766,41.47685426,122.84,122.82,8.1419]
[1742305206066,41.47685426,122.83,122.82,8.1419]
[1742305206567,41.47685426,122.83,122.81,0.063]
[1742305206771,20.0,122.83,122.81,19.13913357]
[1742305206942,41.47685426,122.82,122.81,19.13913357]
[1742305207549,41.47685426,122.82,122.81,0.063]
[1742305207870,82.95370852,122.82,122.81,0.063]
[1742305208069,41.47685426,122.82,122.81,0.063]
[1742305208271,82.95370852,122.82,122.81,0.063]
[1742305208450,93.47370852,122.82,122.81,0.063]
[1742305208968,51.99685426,122.82,122.81,0.063]
[1742305209869,82.95370852,122.82,122.81,0.063]
[1742305210666,41.47685426,122.82,122.81,0.063]
[1742305213268,215.42,122.86,122.81,0.063]
[1742305213462,41.47685426,122.82,122.81,0.063]
[1742305214674,82.95370852,122.82,122.81,0.063]
[1742305214975,41.47685426,122.82,122.81,0.063]
[1742305215352,82.95370852,122.82,122.81,0.063]
[1742305215553,41.47685426,122.82,122.81,0.063]
[1742305215776,20.0,122.82,122.81,0.063]
[1742305215963,61.47685426,122.82,122.81,0.063]
[1742305216160,102.95370852,122.82,122.81,0.063]
[1742305216677,61.47685426,122.82,122.81,0.063]
[1742305218765,102.95370852,122.82,122.81,0.063]
[1742305218960,184.75370852,122.82,122.81,0.063]
[1742305219165,81.8,122.81,122.8,0.03]
[1742305219366,123.27685426,122.81,122.76,8.1459]
[1742305219561,41.47685426,122.77,122.76,28.5108]
[1742305219782,41.47685426,122.77,122.76,8.1459]
[1742305221471,41.47685426,122.77,122.75,8.1466]
[1742305221774,10.26,122.79,122.74,20.57316157]
[1742305221775,164.75370852,122.76,122.74,0.063]
[1742305221976,41.47685426,122.75,122.74,0.063]
[1742305222170,51.69685426,122.75,122.74,8.2103]
[1742305222375,225.72,122.78,122.74,8.2103]
[1742305222571,41.47685426,122.75,122.74,47.65463357]
[1742305222870,41.47685426,122.75,122.74,47.37031043]
[1742305223076,41.47685426,122.75,122.74,0.063]
[1742305223267,41.47685426,122.75,122.74,8.2103]
[1742305223462,41.47685426,122.75,122.74,47.512472]
[1742305223691,41.47685426,122.75,122.74,28.5785]
[1742305223855,41.47685426,122.75,122.74,8.2103]
[1742305224467,41.47685426,122.75,122.74,0.063]
[1742305224683,41.47685426,122.75,122.74,8.2103]
[1742305225288,41.47685426,122.75,122.74,0.063]
[1742305225499,41.47685426,122.75,122.74,8.2103]
[1742305225655,41.47685426,122.75,122.74,0.063]
[1742305226055,61.47685426,122.75,122.74,0.063]
[1742305227095,61.47685426,122.75,122.71,8.1492]
[1742305227297,41.47685426,122.72,122.71,8.1492]
[1742305227664,41.47685426,122.72,122.7,8.2129]
[1742305227882,41.47685426,122.71,122.7,8.2129]
[1742305229883,41.47685426,122.71,122.7,0.063]
[1742305230093,123.27685426,122.71,122.7,0.063]
[1742305230264,82.95370852,122.71,122.7,0.063]
[1742305230460,41.47685426,122.71,122.7,0.063]
[1742305231773,82.95370852,122.71,122.7,0.063]
[1742305232561,41.47685426,122.71,122.7,0.063]
[1742305233369,82.95370852,122.71,122.7,0.063]
[1742305233760,41.47685426,122.71,122.7,0.063]
[1742305233961,26.1755,122.68,122.6,6.3129]
[1742305234161,41.47685426,122.64,122.59,1.6083]
[1742305234468,41.47685426,122.61,122.59,1.6083]
[1742305234866,10.16,122.63,122.58,0.03]
[1742305235060,10.16,122.63,122.59,8.1572]
[1742305235272,41.47685426,122.6,122.59,8.1572]
[1742305235872,41.47685426,122.6,122.58,28.5824]
[1742305236292,91.96,122.63,122.58,8.1879]
[1742305236465,41.47685426,122.59,122.58,8.1879]
[1742305236960,41.47685426,122.6,122.58,8.1879]
[1742305237192,41.47685426,122.59,122.58,8.1879]
[1742305237496,41.47685426,122.59,122.58,0.03]
[1742305237781,51.57685426,122.59,122.58,0.03]
[1742305239570,10.1,122.59,122.58,0.03]
[1742305239887,41.47685426,122.6,122.58,0.03]
[1742305240091,10.06,122.62,122.58,8.1879]
[1742305240295,41.47685426,122.59,122.58,8.1879]
[1742305240594,10.06,122.62,122.58,8.1879]
[1742305240798,41.47685426,122.6,122.58,28.5827]
[1742305240969,41.47685426,122.59,122.58,28.5827]
[1742305241170,41.47685426,122.59,122.58,8.1879]
[1742305241368,10.06,122.62,122.58,8.1879]
[1742305241576,41.47685426,122.59,122.58,28.5827]
[1742305242005,61.47685426,122.59,122.58,0.03]
[1742305242593,102.95370852,122.59,122.58,0.03]
[1742305242892,61.47685426,122.59,122.58,0.03]
[1742305243083,102.95370852,122.59,122.57,0.063]
[1742305243286,93.03370852,122.58,122.57,0.063]
[1742305243595,20.0,122.56,122.55,24.13894059]
[1742305243778,61.47685426,122.56,122.55,24.13894059]
[1742305244299,61.47685426,122.56,122.55,15.97904059]
[1742305244594,61.47685426,122.56,122.55,15.47904059]
[1742305246590,61.47685426,122.56,122.54,36.55647383]
[1742305246790,143.27685426,122.55,122.54,36.55647383]